[Event "32nd NATO Chess Championship"]
[Site "Tartu, Estonia"]
[Date "2022.06.27"]
[Round "1.15"]
[White "Lambruschini, Alex"]
[Black "Pavlidou, Ekaterini"]
[Result "0-1"]
[TimeControl "90 min + 30 sec increment from move one"]
[BlackTitle "WIM"]
[WhiteFideId "2604868"]
[BlackFideId "4213262"]
[WhiteElo "1807"]
[BlackElo "2146"]

1. d4 {[%clk 01:30:56]} {[%emt 00:00:03]} Nf6 {[%clk 01:30:19]} {[%emt
00:00:41]} 2. c4 {[%clk 01:31:18]} {[%emt 00:00:09]} e6 {[%clk 01:30:40]}
{[%emt 00:00:09]} 3. Nc3 {[%clk 01:31:40]} {[%emt 00:00:08]} Bb4 {[%clk
01:30:49]} {[%emt 00:00:20]} 4. Nf3 {[%clk 01:31:56]} {[%emt 00:00:15]} O-O
{[%clk 01:30:32]} {[%emt 00:00:47]} 5. e3 {[%clk 01:32:04]} {[%emt 00:00:21]}
b6 {[%clk 01:28:37]} {[%emt 00:02:25]} 6. Be2 {[%clk 01:32:23]} {[%emt
00:00:11]} Ne4 {[%clk 01:28:05]} {[%emt 00:01:01]} 7. Qc2 {[%clk 01:31:12]}
{[%emt 00:01:43]} Bb7 {[%clk 01:26:03]} {[%emt 00:02:32]} 8. O-O {[%clk
01:31:27]} {[%emt 00:00:15]} Bxc3 {[%clk 01:26:24]} {[%emt 00:00:08]} 9. bxc3
{[%clk 01:31:47]} {[%emt 00:00:11]} f5 {[%clk 01:25:17]} {[%emt 00:01:36]} 10.
a4 {[%clk 01:30:25]} {[%emt 00:01:53]} d6 {[%clk 01:25:02]} {[%emt 00:00:45]}
11. a5 {[%clk 01:29:13]} {[%emt 00:01:43]} a6 {[%clk 01:25:19]} {[%emt
00:00:12]} 12. Ba3 {[%clk 01:28:51]} {[%emt 00:00:52]} Nd7 {[%clk 01:23:49]}
{[%emt 00:01:59]} 13. Rfb1 {[%emt 00:01:08]} Rb8 {[%clk 01:18:27]} {[%emt
00:05:37]} 14. Qd3 {[%clk 01:27:00]} {[%emt 00:01:59]} Qf6 {[%clk 01:11:34]}
{[%emt 00:07:22]} 15. Rb3 {[%clk 01:25:13]} {[%emt 00:02:18]} g5 {[%clk
01:08:19]} {[%emt 00:03:44]} 16. Rab1 {[%clk 01:22:30]} {[%emt 00:03:15]} g4
{[%clk 01:06:32]} {[%emt 00:02:15]} 17. Nd2 {[%clk 01:21:31]} {[%emt 00:01:29]}
Nxf2 {[%clk 01:02:29]} {[%emt 00:04:33]} 18. Qc2 {[%clk 01:20:06]} {[%emt
00:01:56]} f4 {[%clk 00:39:36]} {[%emt 00:23:23]} 19. axb6 {[%clk 01:05:58]}
{[%emt 00:14:38]} fxe3 {[%emt 00:04:40]} 20. bxc7 {[%clk 01:02:24]} {[%emt
00:01:24]} Nh3+ {[%clk 00:37:56]} {[%emt 00:00:39]} 21. Kh1 {[%clk 01:02:03]}
{[%emt 00:00:51]} Qf2 {[%clk 00:38:00]} {[%emt 00:00:25]} 22. d5 {[%clk
00:59:47]} {[%emt 00:02:47]} Qg1+ {[%clk 00:38:18]} {[%emt 00:00:11]} 23. Rxg1
{[%clk 01:00:00]} {[%emt 00:00:17]} Nf2# {[%emt 00:00:04]} 0-1

[Event "32nd NATO Chess Championship"]
[Site "Tartu, Estonia"]
[Date "2022.06.27"]
[Round "1.16"]
[White "Kedzierski, Slawomir"]
[Black "Allmann, Lauri"]
[Result "1-0"]
[TimeControl "90 min + 30 sec increment from move one"]
[WhiteFideId "1134949"]
[BlackFideId "2604868"]
[WhiteElo "2133"]
[BlackElo "1804"]

1. d4 {[%clk 01:30:58]} {[%emt 00:00:02]} Nf6 {[%clk 01:30:49]} {[%emt
00:00:11]} 2. Nf3 {[%clk 01:31:23]} {[%emt 00:00:04]} g6 {[%clk 01:31:01]}
{[%emt 00:00:19]} 3. c4 {[%clk 01:31:35]} {[%emt 00:00:18]} Bg7 {[%clk
01:31:12]} {[%emt 00:00:20]} 4. Nc3 {[%clk 01:31:58]} {[%emt 00:00:06]} O-O
{[%clk 01:31:34]} {[%emt 00:00:08]} 5. e4 {[%clk 01:32:24]} {[%emt 00:00:03]}
d6 {[%clk 01:26:45]} {[%emt 00:05:20]} 6. Be2 {[%clk 01:32:41]} {[%emt
00:00:12]} c5 {[%clk 01:24:48]} {[%emt 00:02:28]} 7. d5 {[%clk 01:32:00]}
{[%emt 00:01:11]} Bg4 {[%clk 01:22:47]} {[%emt 00:02:31]} 8. O-O {[%clk
01:31:51]} {[%emt 00:00:38]} Nbd7 {[%clk 01:22:16]} {[%emt 00:01:02]} 9. Be3
{[%clk 01:31:26]} {[%emt 00:00:55]} Qa5 {[%emt 00:05:40]} 10. Qd2 {[%clk
01:23:48]} {[%emt 00:07:54]} Bxf3 {[%clk 01:13:28]} {[%emt 00:04:22]} 11. Bxf3
{[%clk 01:21:43]} {[%emt 00:02:34]} Ne5 {[%clk 01:11:54]} {[%emt 00:02:05]} 12.
Be2 {[%clk 01:21:59]} {[%emt 00:00:13]} Qb4 {[%clk 01:05:15]} {[%emt 00:07:09]}
13. b3 {[%clk 01:07:16]} {[%emt 00:15:12]} Nfg4 {[%clk 00:45:35]} {[%emt
00:20:10]} 14. Rac1 {[%emt 00:17:29]} Nxe3 {[%clk 00:38:08]} {[%emt 00:02:42]}
15. Qxe3 {[%clk 00:55:44]} {[%emt 00:00:18]} a6 {[%clk 00:36:35]} {[%emt
00:02:03]} 16. Kh1 {[%clk 00:55:33]} {[%emt 00:00:41]} Qa5 {[%clk 00:30:34]}
{[%emt 00:06:32]} 17. f4 {[%clk 00:46:46]} {[%emt 00:09:17]} Nd7 {[%clk
00:29:16]} {[%emt 00:01:49]} 18. Qh3 {[%clk 00:43:54]} {[%emt 00:03:20]} Qc7
{[%clk 00:22:30]} {[%emt 00:07:17]} 19. Bd3 {[%clk 00:39:28]} {[%emt 00:04:55]}
Nf6 {[%clk 00:19:59]} {[%emt 00:03:02]} 20. Qf3 {[%clk 00:33:04]} {[%emt
00:06:52]} Qc8 {[%clk 00:16:08]} {[%emt 00:04:23]} 21. h3 {[%clk 00:33:10]}
{[%emt 00:00:23]} Nh5 {[%clk 00:12:52]} {[%emt 00:03:46]} 22. Ne2 {[%clk
00:32:09]} {[%emt 00:01:32]} e6 {[%clk 00:11:44]} {[%emt 00:01:38]} 23. f5
{[%clk 00:27:50]} {[%emt 00:04:49]} exf5 {[%clk 00:10:29]} {[%emt 00:01:46]} 24.
exf5 {[%clk 00:27:22]} {[%emt 00:00:56]} Be5 {[%clk 00:09:01]} {[%emt
00:01:59]} 25. Qg4 {[%clk 00:22:04]} {[%emt 00:05:46]} Kg7 {[%clk 00:07:20]}
{[%emt 00:02:13]} 26. Rf3 {[%clk 00:19:01]} {[%emt 00:03:32]} Qd7 {[%clk
00:05:43]} {[%emt 00:02:08]} 27. Rcf1 {[%clk 00:18:21]} {[%emt 00:01:08]} Rae8
{[%clk 00:05:39]} {[%emt 00:00:36]} 28. fxg6 {[%clk 00:09:07]} {[%emt
00:09:43]} Qxg4 {[%clk 00:05:16]} {[%emt 00:00:53]} 29. hxg4 {[%clk 00:07:09]}
{[%emt 00:02:28]} Nf6 {[%clk 00:04:32]} {[%emt 00:01:15]} 30. g5 {[%clk
00:07:13]} {[%emt 00:00:26]} fxg6 {[%clk 00:01:14]} {[%emt 00:03:48]} 31. gxf6+
{[%clk 00:07:35]} {[%emt 00:00:07]} Bxf6 {[%clk 00:01:32]} {[%emt 00:00:13]} 32.
Ng3 {[%clk 00:07:57]} {[%emt 00:00:08]} h5 {[%clk 00:00:40]} {[%emt 00:01:22]}
33. Ne4 {[%clk 00:08:17]} {[%emt 00:00:09]} Be5 {[%clk 00:00:46]} {[%emt
00:00:25]} 34. Ng5 {[%clk 00:08:14]} {[%emt 00:00:31]} Rxf3 {[%clk 00:00:49]}
{[%emt 00:00:28]} 35. Rxf3 {[%clk 00:08:31]} {[%emt 00:00:13]} Bf6 {[%clk
00:00:37]} {[%emt 00:00:43]} 36. Ne6+ {[%clk 00:08:46]} {[%emt 00:00:15]} Kf7
{[%clk 00:00:39]} {[%emt 00:00:28]} 37. g3 {[%clk 00:08:42]} {[%emt 00:00:33]}
Rg8 {[%clk 00:00:33]} {[%emt 00:00:37]} 38. Kg2 {[%clk 00:08:25]} {[%emt
00:00:46]} g5 {[%clk 00:00:44]} {[%emt 00:00:19]} 39. Bh7 {[%clk 00:07:42]}
{[%emt 00:01:12]} Rh8 {[%clk 00:00:45]} {[%emt 00:00:30]} 40. Nxg5+ {[%clk
00:06:53]} {[%emt 00:01:20]} Kg7 {[%clk 00:00:38]} {[%emt 00:00:38]} 41. Ne6+
{[%clk 00:06:41]} {[%emt 00:00:40]} Kf7 {[%clk 00:00:40]} {[%emt 00:00:28]} 42.
Bf5 {[%clk 00:07:00]} {[%emt 00:00:11]} Rg8 {[%clk 00:00:35]} {[%emt 00:00:35]}
43. Kh3 {[%clk 00:07:14]} {[%emt 00:00:15]} Ke7 {[%clk 00:00:46]} {[%emt
00:00:21]} 44. Nf4 {[%clk 00:07:24]} {[%emt 00:00:19]} Rg5 {[%clk 00:00:37]}
{[%emt 00:00:39]} 45. Bc8 {[%clk 00:07:20]} {[%emt 00:00:34]} Be5 {[%clk
00:00:32]} {[%emt 00:00:37]} 46. Bxb7 {[%clk 00:07:21]} {[%emt 00:00:28]} a5
{[%clk 00:01:01]} {[%emt 00:00:01]} 47. Bc8 {[%clk 00:07:23]} {[%emt 00:00:27]}
Rg8 {[%clk 00:01:06]} {[%emt 00:00:25]} 48. Be6 {[%clk 00:05:46]} {[%emt
00:00:13]} 1-0

[Event "32nd NATO Chess Championship"]
[Site "Tartu, Estonia"]
[Date "2022.06.27"]
[Round "1.17"]
[White "Van Den Heuvel, Tonnie"]
[Black "Mouroutis, Konstantinos"]
[Result "0-1"]
[TimeControl "90 min + 30 sec increment from move one"]
[WhiteFideId "1012924"]
[BlackFideId "4204689"]
[WhiteElo "1799"]
[BlackElo "2133"]

1. b3 {[%clk 01:30:57]} {[%emt 00:00:02]} d5 {[%clk 01:30:24]} {[%emt
00:00:36]} 2. Bb2 {[%clk 01:31:13]} {[%emt 00:00:14]} Nf6 {[%clk 01:30:13]}
{[%emt 00:00:42]} 3. e3 {[%clk 01:31:17]} {[%emt 00:00:25]} Bf5 {[%clk
01:30:18]} {[%emt 00:00:24]} 4. d4 {[%clk 01:30:47]} {[%emt 00:01:30]} e6
{[%clk 01:30:40]} {[%emt 00:00:39]} 5. Nf3 {[%clk 01:30:27]} {[%emt 00:00:51]}
Nbd7 {[%clk 01:30:26]} {[%emt 00:00:43]} 6. Be2 {[%clk 01:24:33]} {[%emt
00:06:25]} Bd6 {[%clk 01:29:48]} {[%emt 00:01:07]} 7. O-O {[%clk 01:23:44]}
{[%emt 00:01:20]} Ne4 {[%clk 01:27:41]} {[%emt 00:02:35]} 8. Nbd2 {[%clk
01:22:54]} {[%emt 00:01:22]} Qf6 {[%clk 01:23:53]} {[%emt 00:04:18]} 9. c4
{[%clk 01:20:39]} {[%emt 00:02:44]} c6 {[%clk 01:23:59]} {[%emt 00:00:25]} 10.
cxd5 {[%clk 01:16:18]} {[%emt 00:04:52]} exd5 {[%clk 01:23:04]} {[%emt
00:01:23]} 11. Nxe4 {[%clk 01:09:50]} {[%emt 00:06:58]} dxe4 {[%clk 01:19:15]}
{[%emt 00:04:18]} 12. Nd2 {[%clk 01:02:31]} {[%emt 00:07:50]} Qh6 {[%clk
01:10:19]} {[%emt 00:09:26]} 13. g3 {[%clk 01:02:06]} {[%emt 00:00:56]} Bh3
{[%clk 01:08:22]} {[%emt 00:02:26]} 14. Nxe4 {[%clk 00:57:27]} {[%emt
00:05:09]} Bxf1 {[%clk 01:08:10]} {[%emt 00:00:41]} 15. Nxd6+ {[%clk 00:57:49]}
{[%emt 00:00:09]} Qxd6 {[%clk 01:08:33]} {[%emt 00:00:06]} 16. Bxf1 {[%clk
00:58:13]} {[%emt 00:00:08]} O-O {[%clk 01:08:38]} {[%emt 00:00:24]} 17. Bd3
{[%clk 00:53:42]} {[%emt 00:05:01]} Qh6 {[%clk 01:02:49]} {[%emt 00:06:19]} 18.
Rc1 {[%clk 00:52:01]} {[%emt 00:02:11]} Rad8 {[%clk 01:00:03]} {[%emt
00:03:16]} 19. Qf3 {[%clk 00:49:37]} {[%emt 00:02:55]} Ne5 {[%clk 00:57:38]}
{[%emt 00:02:54]} 20. Bxh7+ {[%clk 00:49:29]} {[%emt 00:00:39]} Qxh7 {[%clk
00:57:48]} {[%emt 00:00:19]} 21. dxe5 {[%clk 00:49:54]} {[%emt 00:00:06]} Rd2
{[%clk 00:57:33]} {[%emt 00:00:44]} 22. Ba3 {[%clk 00:48:35]} {[%emt 00:01:50]}
Re8 {[%clk 00:57:25]} {[%emt 00:00:37]} 23. Qg4 {[%emt 00:05:07]} Qg6 {[%clk
00:45:48]} {[%emt 00:12:04]} 24. Qxg6 {[%clk 00:42:00]} {[%emt 00:02:31]} fxg6
{[%clk 00:46:17]} {[%emt 00:00:02]} 25. Bd6 {[%clk 00:37:50]} {[%emt 00:04:40]}
Rxa2 {[%clk 00:46:38]} {[%emt 00:00:09]} 26. b4 {[%emt 00:02:59]} a5 {[%clk
00:43:30]} {[%emt 00:03:36]} 27. bxa5 {[%clk 00:31:51]} {[%emt 00:04:02]} Rxa5
{[%clk 00:43:58]} {[%emt 00:00:02]} 28. f4 {[%clk 00:32:03]} {[%emt 00:00:17]}
Ra2 {[%clk 00:36:35]} {[%emt 00:07:54]} 29. h4 {[%clk 00:29:48]} {[%emt
00:02:44]} Rea8 {[%clk 00:36:17]} {[%emt 00:00:47]} 30. Rb1 {[%clk 00:26:05]}
{[%emt 00:04:14]} Ra1 {[%clk 00:36:10]} {[%emt 00:00:37]} 31. Rxa1 {[%emt
00:00:25]} Rxa1+ {[%clk 00:36:33]} {[%emt 00:00:05]} 32. Kf2 {[%clk 00:26:30]}
{[%emt 00:00:12]} Ra2+ {[%clk 00:33:36]} {[%emt 00:03:28]} 33. Kf3 {[%clk
00:26:42]} {[%emt 00:00:17]} b5 {[%clk 00:33:00]} {[%emt 00:01:06]} 34. Kg4
{[%clk 00:23:05]} {[%emt 00:04:07]} Re2 {[%clk 00:31:55]} {[%emt 00:01:34]} 35.
Kf3 {[%clk 00:23:02]} {[%emt 00:00:33]} Rc2 {[%clk 00:31:01]} {[%emt 00:01:24]}
36. Ke4 {[%clk 00:22:02]} {[%emt 00:01:31]} b4 {[%clk 00:31:09]} {[%emt
00:00:22]} 37. Kd3 {[%clk 00:21:29]} {[%emt 00:01:03]} b3 {[%clk 00:31:24]}
{[%emt 00:00:14]} 38. Ba3 {[%clk 00:13:37]} {[%emt 00:08:22]} c5 {[%clk
00:31:31]} {[%emt 00:00:23]} 0-1

[Event "32nd NATO Chess Championship"]
[Site "Tartu, Estonia"]
[Date "2022.06.27"]
[Round "1.19"]
[White "Muld, Tarmo"]
[Black "Onley, David E"]
[Result "0-1"]
[TimeControl "90 min + 30 sec increment from move one"]
[WhiteFideId "4519469"]
[BlackFideId "419311"]
[WhiteElo "1783"]
[BlackElo "2083"]

1. d4 {[%clk 01:30:55]} {[%emt 00:00:04]} Nf6 {[%clk 01:30:52]} {[%emt
00:00:09]} 2. c4 {[%clk 01:30:51]} {[%emt 00:00:34]} g6 {[%clk 01:31:13]}
{[%emt 00:00:08]} 3. Nf3 {[%clk 01:30:31]} {[%emt 00:00:50]} Bg7 {[%clk
01:31:34]} {[%emt 00:00:10]} 4. Nc3 {[%clk 01:30:32]} {[%emt 00:00:29]} d6
{[%clk 01:31:48]} {[%emt 00:00:16]} 5. g3 {[%clk 01:30:40]} {[%emt 00:00:22]}
O-O {[%clk 01:32:06]} {[%emt 00:00:12]} 6. Bg2 {[%clk 01:30:37]} {[%emt
00:00:32]} Nbd7 {[%clk 01:32:17]} {[%emt 00:00:20]} 7. O-O {[%clk 01:29:01]}
{[%emt 00:02:06]} e5 {[%clk 01:31:46]} {[%emt 00:01:00]} 8. Bg5 {[%clk
01:26:46]} {[%emt 00:02:44]} h6 {[%clk 01:31:21]} {[%emt 00:00:55]} 9. Bxf6
{[%clk 01:24:19]} {[%emt 00:02:59]} Qxf6 {[%clk 01:28:24]} {[%emt 00:03:26]} 10.
Nd5 {[%clk 01:21:36]} {[%emt 00:03:14]} Qd8 {[%clk 01:28:41]} {[%emt 00:00:13]}
11. e3 {[%clk 01:20:47]} {[%emt 00:01:19]} Re8 {[%clk 01:27:05]} {[%emt
00:02:05]} 12. Rb1 {[%clk 01:18:48]} {[%emt 00:02:29]} a5 {[%clk 01:23:29]}
{[%emt 00:04:07]} 13. a4 {[%clk 01:17:34]} {[%emt 00:01:44]} Nb8 {[%clk
01:16:55]} {[%emt 00:07:03]} 14. dxe5 {[%clk 01:14:28]} {[%emt 00:03:36]} dxe5
{[%clk 01:16:47]} {[%emt 00:00:38]} 15. Qc2 {[%clk 01:13:46]} {[%emt 00:01:13]}
c6 {[%clk 01:14:59]} {[%emt 00:02:17]} 16. Nc3 {[%clk 01:13:52]} {[%emt
00:00:24]} Na6 {[%clk 01:13:29]} {[%emt 00:02:00]} 17. Rbd1 {[%clk 01:13:23]}
{[%emt 00:00:59]} Qe7 {[%clk 01:12:20]} {[%emt 00:01:39]} 18. Ne4 {[%clk
01:12:06]} {[%emt 00:01:47]} Nb4 {[%clk 01:04:35]} {[%emt 00:08:15]} 19. Qb1
{[%clk 01:12:09]} {[%emt 00:00:28]} Be6 {[%clk 01:02:54]} {[%emt 00:02:11]} 20.
b3 {[%clk 01:11:26]} {[%emt 00:01:04]} Rad8 {[%clk 00:58:20]} {[%emt 00:05:12]}
21. Rxd8 {[%clk 01:03:33]} {[%emt 00:08:24]} Rxd8 {[%clk 00:58:12]} {[%emt
00:00:37]} 22. Rd1 {[%clk 01:03:55]} {[%emt 00:00:08]} Bc8 {[%clk 00:52:08]}
{[%emt 00:06:34]} 23. h3 {[%clk 01:01:43]} {[%emt 00:02:42]} f5 {[%clk
00:49:51]} {[%emt 00:02:47]} 24. Rxd8+ {[%clk 00:58:10]} {[%emt 00:04:03]} Qxd8
{[%clk 00:50:14]} {[%emt 00:00:08]} 25. Nc3 {[%clk 00:57:41]} {[%emt 00:00:58]}
e4 {[%clk 00:48:31]} {[%emt 00:02:12]} 26. Nd4 {[%clk 00:57:55]} {[%emt
00:00:17]} Bxd4 {[%clk 00:44:36]} {[%emt 00:04:25]} 27. exd4 {[%clk 00:58:15]}
{[%emt 00:00:10]} Qxd4 {[%clk 00:44:43]} {[%emt 00:00:22]} 28. Ne2 {[%clk
00:58:35]} {[%emt 00:00:10]} Qe5 {[%clk 00:40:27]} {[%emt 00:04:46]} 29. Nf4
{[%clk 00:58:24]} {[%emt 00:00:41]} g5 {[%clk 00:36:42]} {[%emt 00:04:14]} 30.
Nh5 {[%clk 00:58:10]} {[%emt 00:00:45]} Nd3 {[%clk 00:35:47]} {[%emt 00:01:25]}
31. Qd1 {[%clk 00:57:29]} {[%emt 00:01:11]} Be6 {[%clk 00:29:29]} {[%emt
00:06:48]} 32. Qe2 {[%clk 00:54:31]} {[%emt 00:03:28]} Bf7 {[%clk 00:27:58]}
{[%emt 00:02:01]} 33. g4 {[%clk 00:50:58]} {[%emt 00:04:03]} Bxh5 {[%clk
00:27:14]} {[%emt 00:01:15]} 34. gxh5 {[%clk 00:51:20]} {[%emt 00:00:08]} Qa1+
{[%clk 00:26:25]} {[%emt 00:01:18]} 35. Kh2 {[%clk 00:51:26]} {[%emt 00:00:24]}
Qe1 {[%clk 00:25:20]} {[%emt 00:01:35]} 36. Qxe1 {[%clk 00:49:03]} {[%emt
00:02:53]} Nxe1 {[%clk 00:25:42]} {[%emt 00:00:07]} 37. Bf1 {[%clk 00:49:26]}
{[%emt 00:00:07]} Nf3+ {[%clk 00:24:47]} {[%emt 00:01:26]} 38. Kg3 {[%clk
00:49:25]} {[%emt 00:00:31]} f4+ {[%clk 00:23:45]} {[%emt 00:01:31]} 39. Kg4
{[%clk 00:49:28]} {[%emt 00:00:27]} Nh2+ {[%clk 00:23:55]} {[%emt 00:00:20]} 40.
Kf5 {[%clk 00:49:42]} {[%emt 00:00:17]} Nxf1 {[%clk 00:24:01]} {[%emt
00:00:24]} 41. Kxe4 {[%clk 00:49:45]} {[%emt 00:00:27]} Nd2+ {[%clk 00:21:42]}
{[%emt 00:02:49]} 42. Ke5 {[%clk 00:49:00]} {[%emt 00:01:15]} Nxb3 {[%clk
00:21:32]} {[%emt 00:00:40]} 43. Kd6 {[%clk 00:49:19]} {[%emt 00:00:11]} Nd2
{[%clk 00:21:51]} {[%emt 00:00:10]} 44. Kc5 {[%clk 00:49:21]} {[%emt 00:00:28]}
Ne4+ {[%clk 00:21:51]} {[%emt 00:00:31]} 45. Kb6 {[%clk 00:49:42]} {[%emt
00:00:10]} Nxf2 {[%clk 00:22:06]} {[%emt 00:00:15]} 46. Kxb7 {[%clk 00:49:59]}
{[%emt 00:00:13]} Nd3 {[%clk 00:22:17]} {[%emt 00:00:19]} 47. Kxc6 {[%clk
00:50:13]} {[%emt 00:00:16]} f3 {[%clk 00:22:36]} {[%emt 00:00:10]} 48. Kb6
{[%clk 00:50:35]} {[%emt 00:00:08]} f2 {[%clk 00:22:54]} {[%emt 00:00:12]} 49.
c5 {[%clk 00:50:58]} {[%emt 00:00:07]} f1=Q {[%clk 00:23:07]} {[%emt 00:00:17]}
50. c6 {[%clk 00:51:15]} {[%emt 00:00:13]} Qb1+ {[%clk 00:22:41]} {[%emt
00:00:56]} 51. Kxa5 {[%clk 00:51:36]} {[%emt 00:00:09]} Ne5 {[%clk 00:22:34]}
{[%emt 00:00:37]} 52. c7 {[%clk 00:51:47]} {[%emt 00:00:19]} Nc4+ {[%clk
00:22:52]} {[%emt 00:00:12]} 0-1

[Event "32nd NATO Chess Championship"]
[Site "Tartu, Estonia"]
[Date "2022.06.27"]
[Round "1.20"]
[White "Keough, Robert"]
[Black "Ivsek, Cveto"]
[Result "1-0"]
[TimeControl "90 min + 30 sec increment from move one"]
[WhiteFideId "410667"]
[BlackFideId "14608405"]
[WhiteElo "2074"]
[BlackElo "1766"]

1. e4 {[%clk 01:30:55]} {[%emt 00:00:03]} e6 {[%clk 01:30:21]} {[%emt
00:00:39]} 2. d4 {[%clk 01:31:16]} {[%emt 00:00:10]} d5 {[%clk 01:30:20]}
{[%emt 00:00:31]} 3. Nc3 {[%clk 01:31:07]} {[%emt 00:00:39]} Bb4 {[%clk
01:27:37]} {[%emt 00:03:12]} 4. e5 {[%clk 01:30:43]} {[%emt 00:00:54]} Ne7
{[%clk 01:24:33]} {[%emt 00:03:34]} 5. Qg4 {[%clk 01:28:51]} {[%emt 00:02:23]}
Rg8 {[%clk 01:11:03]} {[%emt 00:13:59]} 6. Bd3 {[%clk 01:29:01]} {[%emt
00:00:21]} Ng6 {[%clk 01:07:28]} {[%emt 00:04:05]} 7. Bg5 {[%clk 01:27:17]}
{[%emt 00:02:13]} Be7 {[%clk 01:07:03]} {[%emt 00:00:56]} 8. Bxe7 {[%clk
01:25:30]} {[%emt 00:02:17]} Qxe7 {[%clk 01:06:56]} {[%emt 00:00:37]} 9. Nge2
{[%clk 01:25:47]} {[%emt 00:00:12]} c5 {[%clk 00:57:22]} {[%emt 00:10:05]} 10.
Nb5 {[%clk 01:25:04]} {[%emt 00:01:14]} c4 {[%clk 00:56:11]} {[%emt 00:01:40]}
11. Nd6+ {[%clk 01:23:23]} {[%emt 00:02:11]} Kd7 {[%clk 00:56:28]} {[%emt
00:00:13]} 12. Bxg6 {[%clk 01:13:58]} {[%emt 00:09:55]} hxg6 {[%clk 00:56:24]}
{[%emt 00:00:33]} 13. Nc3 {[%clk 01:14:05]} {[%emt 00:00:24]} b6 {[%clk
00:55:14]} {[%emt 00:01:40]} 14. Nxd5 {[%clk 01:14:25]} {[%emt 00:00:10]} Qf8
{[%clk 00:54:30]} {[%emt 00:01:14]} 15. Nf4 {[%clk 01:08:54]} {[%emt 00:06:01]}
Nc6 {[%clk 00:51:16]} {[%emt 00:03:44]} 16. c3 {[%clk 01:08:16]} {[%emt
00:01:08]} Rh8 {[%clk 00:47:27]} {[%emt 00:04:19]} 17. Nxc4 {[%clk 01:08:14]}
{[%emt 00:00:32]} b5 {[%clk 00:44:18]} {[%emt 00:03:39]} 18. Nd6 {[%clk
01:05:48]} {[%emt 00:02:56]} b4 {[%clk 00:44:23]} {[%emt 00:00:26]} 19. Nd3
{[%clk 01:05:52]} {[%emt 00:00:25]} 1-0

[Event "32nd NATO Chess Championship"]
[Site "Tartu, Estonia"]
[Date "2022.06.27"]
[Round "1.21"]
[White "Moulton, Richard"]
[Black "Nikomanis, Andreas"]
[Result "0-1"]
[TimeControl "90 min + 30 sec increment from move one"]
[WhiteFideId "2622718"]
[BlackFideId "4213831"]
[WhiteElo "1766"]
[BlackElo "2068"]

1. e4 {[%clk 01:30:56]} {[%emt 00:00:03]} c5 {[%clk 01:29:52]} {[%emt
00:01:08]} 2. Nf3 {[%clk 01:31:12]} {[%emt 00:00:14]} Nc6 {[%clk 01:30:13]}
{[%emt 00:00:09]} 3. Bb5 {[%clk 01:29:38]} {[%emt 00:02:04]} g6 {[%clk
01:30:34]} {[%emt 00:00:09]} 4. O-O {[%clk 01:29:09]} {[%emt 00:00:59]} Bg7
{[%clk 01:30:59]} {[%emt 00:00:05]} 5. Re1 {[%clk 01:28:15]} {[%emt 00:01:24]}
Nf6 {[%clk 01:30:20]} {[%emt 00:01:09]} 6. e5 {[%clk 01:27:53]} {[%emt
00:00:51]} Nd5 {[%clk 01:29:22]} {[%emt 00:01:28]} 7. Nc3 {[%clk 01:27:24]}
{[%emt 00:00:59]} Nxc3 {[%clk 01:26:23]} {[%emt 00:03:29]} 8. bxc3 {[%clk
01:23:19]} {[%emt 00:04:36]} O-O {[%clk 01:25:09]} {[%emt 00:01:44]} 9. d4
{[%clk 01:16:11]} {[%emt 00:07:38]} cxd4 {[%clk 01:15:00]} {[%emt 00:10:40]} 10.
cxd4 {[%clk 01:13:24]} {[%emt 00:03:16]} d6 {[%clk 01:15:13]} {[%emt 00:00:16]}
11. Bxc6 {[%clk 01:10:02]} {[%emt 00:03:53]} bxc6 {[%clk 01:15:36]} {[%emt
00:00:06]} 12. Bg5 {[%clk 01:04:01]} {[%emt 00:06:31]} Be6 {[%clk 01:14:14]}
{[%emt 00:01:53]} 13. Qd3 {[%clk 00:59:02]} {[%emt 00:05:28]} Qc7 {[%clk
01:11:24]} {[%emt 00:03:20]} 14. c3 {[%clk 00:50:40]} {[%emt 00:08:53]} Rab8
{[%clk 01:07:14]} {[%emt 00:04:39]} 15. Qd2 {[%clk 00:45:28]} {[%emt 00:05:42]}
dxe5 {[%clk 00:49:45]} {[%emt 00:18:00]} 16. Nxe5 {[%clk 00:33:01]} {[%emt
00:12:57]} f6 {[%clk 00:46:47]} {[%emt 00:03:27]} 17. Nxg6 {[%clk 00:33:12]}
{[%emt 00:00:20]} hxg6 {[%clk 00:46:47]} {[%emt 00:00:30]} 18. Rxe6 {[%clk
00:33:11]} {[%emt 00:00:30]} fxg5 {[%clk 00:47:10]} {[%emt 00:00:07]} 19. Qxg5
{[%clk 00:33:24]} {[%emt 00:00:17]} Qf4 {[%clk 00:46:05]} {[%emt 00:01:36]} 20.
Qxf4 {[%clk 00:27:56]} {[%emt 00:05:58]} Rxf4 {[%clk 00:46:29]} {[%emt
00:00:06]} 21. Rxc6 {[%clk 00:25:07]} {[%emt 00:03:20]} Rb2 {[%clk 00:46:13]}
{[%emt 00:00:46]} 22. f3 {[%clk 00:24:49]} {[%emt 00:00:47]} Rc2 {[%clk
00:42:03]} {[%emt 00:04:39]} 23. Rxg6 {[%clk 00:21:05]} {[%emt 00:04:14]} Rxc3
{[%clk 00:42:08]} {[%emt 00:00:26]} 24. Re1 {[%clk 00:17:25]} {[%emt 00:04:09]}
Kf7 {[%clk 00:40:03]} {[%emt 00:02:35]} 25. Ra6 {[%clk 00:16:43]} {[%emt
00:01:13]} Bxd4+ {[%clk 00:38:30]} {[%emt 00:02:02]} 26. Kf1 {[%clk 00:17:04]}
{[%emt 00:00:09]} Bb6 {[%clk 00:36:06]} {[%emt 00:02:55]} 27. Re2 {[%clk
00:15:37]} {[%emt 00:01:57]} Rd4 {[%clk 00:31:49]} {[%emt 00:04:47]} 28. Rb2
{[%clk 00:13:38]} {[%emt 00:02:29]} Rc1+ {[%clk 00:28:57]} {[%emt 00:03:21]} 29.
Ke2 {[%clk 00:13:34]} {[%emt 00:00:34]} Rg1 {[%clk 00:29:19]} {[%emt 00:00:08]}
30. Ke3 {[%clk 00:09:43]} {[%emt 00:04:22]} Rb4+ {[%clk 00:27:25]} {[%emt
00:02:23]} 31. Rxb6 {[%clk 00:09:56]} {[%emt 00:00:19]} Rxb6 {[%clk 00:27:50]}
{[%emt 00:00:05]} 0-1